fUSD/lending_fUSD_20251213
["ID","MTS","AMOUNT","RATE_DAILY","PERIOD"]
[398394951,1765593043281,-500.0,0.00016438,2]
[398394952,1765593043290,-500.0,0.00016438,2]
[398394953,1765593043299,-500.0,0.00016438,2]
[398394954,1765593043308,-500.0,0.00016438,2]
[398394955,1765593043318,-500.0,0.00016438,2]
[398394956,1765593043327,-500.0,0.00016438,2]
[398394957,1765593043336,-500.0,0.00016438,2]
[398394958,1765593043345,-500.0,0.00016438,2]
[398394959,1765593043354,-500.0,0.00016438,2]
[398394960,1765593043364,-500.0,0.00016438,2]
[398394961,1765593043373,-500.0,0.00016438,2]
[398394962,1765593043383,-500.0,0.00016438,2]
[398394963,1765593043392,-500.0,0.00016438,2]
[398394964,1765593043401,-500.0,0.00016438,2]
[398394965,1765593043410,-500.0,0.00016438,2]
[398394966,1765593043419,-500.0,0.00016438,2]
[398394967,1765593043428,-500.0,0.00016438,2]
[398394968,1765593043437,-500.0,0.00016438,2]
[398394969,1765593043446,-500.0,0.00016438,2]
[398394970,1765593043455,-500.0,0.00016438,2]
[398394971,1765593043466,-500.0,0.00016438,2]
[398394972,1765593043475,-500.0,0.00016438,2]
[398394973,1765593043484,-500.0,0.00016438,2]
[398394974,1765593043494,-500.0,0.00016438,2]
[398394975,1765593043503,-18134.53407587,0.00017,2]
[398394977,1765593045445,-1155.39425,0.00017,2]
[398394978,1765593045499,-14546.82580994,0.00017,2]
[398394979,1765593045716,-1031.79579359,0.00017,2]
[398394980,1765593045727,-466.18073338,0.00017,2]
[398394981,1765593045738,-850.305,0.00017,2]
[398394982,1765593045769,-1463.72344592,0.00017,2]
[398394984,1765593045781,-619.59135763,0.00017,2]
[398395006,1765593117993,168.56,8.341e-05,2]
[398395007,1765593118245,168.56,0.00010009,2]
[398395008,1765593118443,168.56,0.00011677,2]
[398395009,1765593118647,168.56,0.00013345,2]
[398395010,1765593118842,168.56,0.00015013,2]
[398395011,1765593143009,302.02493065,0.00025,30]
[398395029,1765593642068,1052.33065827,0.00025,30]
[398395031,1765593804712,1000.0,0.00012,2]
[398395032,1765593914911,156.33947752,0.00015288,2]
[398395033,1765593914981,161.0330175,0.00015288,2]
[398395034,1765593921753,158.18185077,0.00015288,2]
[398395035,1765593936041,150.0,0.00015288,2]
[398395050,1765594005933,587.35,0.00024658,30]
[398395052,1765594049962,462.07,0.00025,120]
[398395058,1765594231609,-282.0,0.00015841,2]
[398395059,1765594231619,-621.63050001,0.00015841,2]
[398395060,1765594231630,-265.00000012,0.00015841,2]
[398395061,1765594231642,-697.39149,0.00015841,2]
[398395062,1765594231653,-227.97800987,0.00015841,2]
[398395063,1765594231663,-156.97,0.00015972,2]
[398395064,1765594231672,-207.33321328,0.00016087,2]
[398395065,1765594231682,-125.10451429,0.00016187,2]
[398395066,1765594231694,-300.03857324,0.00016187,2]
[398395067,1765594231754,-1174.85691247,0.00016187,2]
[398395068,1765594231763,-250.0,0.00016187,2]
[398395069,1765594231773,-250.0,0.00016355,2]
[398395070,1765594231783,-168.42,0.00016521,2]
[398395071,1765594231792,-363.86775701,0.00016598,2]
[398395072,1765594231802,-229.46550706,0.00016628,2]
[398395073,1765594231811,-363.867757,0.00016632,2]
[398395074,1765594231821,-352.03764961,0.00016667,2]
[398395075,1765594231832,-11.83010739,0.00016667,2]
[398395076,1765594231842,-168.56,0.00016682,2]
[398395077,1765594231851,-254.9077488,0.00016698,2]
[398395078,1765594231860,-207.33321328,0.000167,2]
[398395079,1765594231871,-363.867757,0.00016701,2]
[398395081,1765594231880,-330.0,0.00016734,2]
[398395083,1765594231890,-882.23092133,0.00016739,2]
[398395085,1765594231899,-300.0,0.00016767,2]
[398395087,1765594231908,-1200.0,0.00016787,2]
[398395089,1765594231917,-378.51025178,0.00016788,2]
[398395091,1765594231926,-1200.0,0.00016795,2]
[398395093,1765594231935,-550.0,0.00016796,2]
[398395095,1765594231945,-150.99,0.00016797,2]
[398395097,1765594231954,-380.14033524,0.00016797,2]
[398395101,1765594231984,-701.5936998,0.00016797,2]
[398395103,1765594231995,-1366.96461276,0.00016797,2]
[398395106,1765594232007,-6889.881243,0.00016797,2]
[398395108,1765594232018,-634.47129063,0.00016797,2]
[398395110,1765594232029,-26.93881857,0.00016797,2]
[398395112,1765594232039,-1821.81874994,0.00016797,2]
[398395116,1765594232062,-1403.84725605,0.00016797,2]
[398395118,1765594232073,-953.31026791,0.00016797,2]
[398395120,1765594232085,-310.31,0.00016797,2]
[398395123,1765594232101,-5510.7037261,0.00016797,2]
[398395125,1765594232111,-999.99,0.00016797,2]
[398395127,1765594232120,-2467.12,0.00016798,2]
[398395129,1765594232130,-790.02012702,0.00016798,2]
[398395131,1765594232141,-200.77287298,0.00016798,2]
[398395133,1765594232151,-500.0,0.00016798,2]
[398395135,1765594232161,-347.12258464,0.00016798,2]
[398395137,1765594232171,-500.0,0.00016798,2]
[398395140,1765594232180,-51.33204605,0.00016798,2]
[398395142,1765594232199,-105.91518584,0.00016798,2]
[398395145,1765594232208,-500.0,0.00016798,2]
[398395146,1765594232218,-500.0,0.00016798,2]
[398395149,1765594232228,-324.7020707,0.00016798,2]
[398395151,1765594232237,-500.0,0.00016798,2]
[398395153,1765594232247,-500.0,0.00016798,2]
[398395155,1765594232256,-500.0,0.00016798,2]
[398395157,1765594232266,-500.0,0.00016798,2]
[398395159,1765594232277,-504.90072742,0.00016798,2]
[398395161,1765594232285,-300.0,0.00016798,2]
[398395163,1765594232295,-500.0,0.00016798,2]
[398395165,1765594232304,-500.0,0.00016798,2]
[398395167,1765594232313,-500.0,0.00016798,2]
[398395169,1765594232323,-500.0,0.00016798,2]
[398395171,1765594232331,-500.0,0.00016798,2]
[398395173,1765594232340,-500.0,0.00016798,2]
[398395175,1765594232350,-500.0,0.00016798,2]
[398395177,1765594232360,-500.0,0.00016798,2]
[398395179,1765594232369,-500.0,0.00016798,2]
[398395181,1765594232380,-500.0,0.00016798,2]
[398395183,1765594232389,-500.0,0.00016798,2]
[398395186,1765594232403,-500.0,0.00016798,2]
[398395188,1765594232413,-500.0,0.00016798,2]
[398395190,1765594232422,-500.0,0.00016798,2]
[398395192,1765594232432,-500.0,0.00016798,2]
[398395194,1765594232441,-500.0,0.00016798,2]
[398395196,1765594232451,-500.0,0.00016798,2]
[398395198,1765594232461,-500.0,0.00016798,2]
[398395200,1765594232470,-500.0,0.00016798,2]
[398395202,1765594232482,-500.0,0.00016798,2]
[398395204,1765594232491,-500.0,0.00016798,2]
[398395206,1765594232501,-500.0,0.00016798,2]
[398395208,1765594232510,-500.0,0.00016798,2]
[398395210,1765594232520,-500.0,0.00016798,2]
[398395212,1765594232530,-500.0,0.00016798,2]
[398395215,1765594232540,-500.0,0.00016798,2]
[398395217,1765594232550,-500.0,0.00016798,2]
[398395219,1765594232560,-500.0,0.00016798,2]
[398395221,1765594232569,-500.0,0.00016798,2]
[398395223,1765594232579,-500.0,0.00016798,2]
[398395225,1765594232589,-500.54452527,0.00016798,2]
[398395227,1765594232598,-500.0,0.00016798,2]
[398395229,1765594232608,-500.0,0.00016798,2]
[398395231,1765594232618,-500.0,0.00016798,2]
[398395233,1765594232628,-500.0,0.00016798,2]
[398395235,1765594232637,-500.0,0.00016798,2]
[398395237,1765594232646,-530.82009812,0.00016798,2]
[398395239,1765594232656,-500.0,0.00016798,2]
[398395241,1765594232665,-500.0,0.00016798,2]
[398395243,1765594232675,-500.0,0.00016798,2]
[398395245,1765594232686,-500.0,0.00016798,2]
[398395246,1765594232696,-500.0,0.00016798,2]
[398395248,1765594232706,-500.0,0.00016798,2]
[398395249,1765594232716,-500.0,0.00016798,2]
[398395250,1765594232725,-479.7,0.00016798,2]
[398395251,1765594232735,-337.9437,0.000168,2]
[398395252,1765594232744,-1000.0,0.000168,2]
[398395253,1765594232754,-1000.0,0.000168,2]
[398395254,1765594232763,-1288.72574619,0.000168,2]
[398395255,1765594232773,-23751.36107382,0.000168,2]
[398395256,1765594232782,-9285.0508791,0.00016801,2]
[398395257,1765594237647,-170.33328257,0.000168,2]
[398395258,1765594237656,-175.07128845,0.000168,2]
[398395259,1765594237666,-173.57806898,0.000168,2]
[398395260,1765594237751,-99.52174249,0.000168,2]
[398395261,1765594237760,-193.05847128,0.00016801,2]
[398395262,1765594237804,-5907.77862052,0.00016801,2]
[398395263,1765594237813,-1539.2509769,0.00016801,2]
[398395264,1765594237823,-500.0,0.00016877,2]
[398395265,1765594237832,-200.0,0.0001689,2]
[398395266,1765594237842,-574.12855637,0.0001689,2]
[398395267,1765594237851,-183.49942286,0.000169,2]
[398395268,1765594237861,-192.94340285,0.000169,2]
[398395269,1765594237871,-1288.72574616,0.00016922,2]
[398395270,1765594237880,-115.4064552,0.00016922,2]
[398395271,1765594237892,-503.93718342,0.00016922,2]
[398395272,1765594237904,-259.1000001,0.00016922,2]
[398395275,1765594237927,-1868.60706703,0.00016922,2]
[398395277,1765594237943,-1749.18564804,0.00016922,2]
[398395278,1765594237956,-1658.57091694,0.00016922,2]
[398395280,1765594237971,-797.16932963,0.00016922,2]
[398395293,1765594239741,-16799.38447338,0.00016922,2]
[398395294,1765594239752,-1000.0,0.00016981,2]
[398395295,1765594239762,-170.64,0.00016986,2]
[398395296,1765594239771,-151.0,0.00016997,2]
[398395297,1765594239781,-74698.82991292,0.00017,2]
[398395298,1765594239850,-671.44990857,0.00017,2]
[398395299,1765594239862,-1593.8766281,0.00017,2]
[398395300,1765594239874,-752.0900232,0.00017,2]
[398395301,1765594239899,-49004.68653436,0.00017,2]
[398395302,1765594239911,-479.47431379,0.00017,2]
[398395303,1765594239923,-695.28994766,0.00017,2]
[398395304,1765594239954,-1504.57028234,0.00017,2]
[398395305,1765594239965,-884.79552283,0.00017,2]
[398395306,1765594239976,-3230.07130978,0.00017,2]
[398395307,1765594239988,-315.53735,0.00017,2]
[398395308,1765594240062,-4215.41309224,0.00017,2]
[398395309,1765594240074,-1573.42458069,0.00017,2]
[398395310,1765594240113,-1427.900885,0.00017,2]
[398395311,1765594240125,-361.707346,0.00017,2]
[398395312,1765594240167,-730.0,0.00017,2]
[398395313,1765594240178,-1847.29706136,0.00017,2]
[398395314,1765594240190,-4514.51,0.00017,2]
[398395329,1765594242734,-780.249672,0.00017,2]
[398395330,1765594242745,-392.42322,0.00017,2]
[398395331,1765594242756,-412.05845751,0.00017,2]
[398395332,1765594242891,-123155.39793574,0.00017,2]
[398395333,1765594242902,-1164.99761564,0.00017,2]
[398395334,1765594242912,-4779.79456686,0.00017,2]
[398395335,1765594242923,-1015.95344153,0.00017,2]
[398395336,1765594242948,-1988.99839046,0.00017,2]
[398395337,1765594242959,-46638.04487993,0.00017,2]
[398395338,1765594242970,-4139.35275217,0.00017,2]
[398395339,1765594242982,-337.27249606,0.00017,2]
[398395340,1765594242992,-504.95613233,0.00017,2]
[398395341,1765594243007,-17607.88222225,0.00017,2]
[398395342,1765594243018,-1302.81008527,0.00017,2]
[398395343,1765594243029,-636.960009,0.00017,2]
[398395344,1765594243040,-196958.36286084,0.00017,2]
[398395345,1765594243051,-4334.78576873,0.00017,2]
[398395354,1765594246818,-422.88,0.00017,2]
[398395355,1765594246830,-14218.90041072,0.00017,2]
[398395356,1765594246840,-582.0582955,0.00017,2]
[398395357,1765594246852,-682.7185601,0.00017,2]
[398395358,1765594246863,-3148.0,0.00017,2]
[398395359,1765594246882,-1057.83701526,0.00017,2]
[398395360,1765594246892,-294.47391947,0.00017,2]
[398395361,1765594246903,-420.22282652,0.00017,2]
[398395362,1765594246914,-347.3546,0.00017,2]
[398395363,1765594246925,-4841.72263702,0.00017,2]
[398395364,1765594246936,-431.69864103,0.00017,2]
[398395365,1765594246947,-2503.20420611,0.00017,2]
[398395366,1765594246957,-1509.34266157,0.00017,2]
[398395367,1765594246968,-683.52391036,0.00017,2]
[398395368,1765594246979,-3605.53971555,0.00017,2]
[398395369,1765594247894,-131870.69317222,0.00017,2]
[398395370,1765594247907,-29370.56119435,0.00017,2]
[398395371,1765594247916,-2000.0,0.00017,2]
[398395372,1765594247926,-1288.72574616,0.00017044,2]
[398395373,1765594247935,-23751.36107374,0.00017044,2]
[398395374,1765594247943,-500.0,0.00017049,2]
[398395375,1765594247952,-511.22214592,0.00017049,2]
[398395376,1765594247962,-479.7,0.00017072,2]
[398395377,1765594247971,-151.15,0.00017088,2]
[398395378,1765594247980,-211.56,0.00017099,2]
[398395379,1765594247989,-1288.72574616,0.00017167,2]
[398395380,1765594247999,-23751.36107374,0.00017167,2]
[398395381,1765594248009,-168.42,0.00017203,2]
[398395382,1765594248018,-1288.72574616,0.00017289,2]
[398395383,1765594248027,-15757.94067148,0.00017289,2]
[398395384,1765594248042,-7993.42040226,0.00017289,2]
[398395385,1765594248051,-3450.0,0.0001731,2]
[398395386,1765594248061,-611.0,0.0001731,2]
[398395387,1765594248071,-1606.0,0.0001731,2]
[398395388,1765594248080,-1261.0,0.0001731,2]
[398395389,1765594248090,-6520.0,0.0001731,2]
[398395390,1765594248099,-1306.0,0.0001731,2]
[398395391,1765594248109,-2431.252,0.0001731,2]
[398395392,1765594248118,-4796.0,0.0001731,2]
[398395393,1765594248128,-563.0,0.0001731,2]
[398395394,1765594248137,-479.7,0.00017346,2]
[398395395,1765594248147,-250.60527346,0.00017395,2]
[398395396,1765594248156,-1288.72574616,0.00017411,2]
[398395397,1765594248165,-11031.48529996,0.00017411,2]
[398395398,1765594248176,-10276.89826205,0.00017411,2]
[398395399,1765594248187,-606.553,0.00017411,2]
[398395416,1765594952729,4574.53575219,0.00025,30]
[398395426,1765595297482,410.18,0.00013699,2]
[398395429,1765595402066,327049.54671673,0.00025,30]
[398395438,1765595431790,-3071.48034087,0.00015995,2]
[398395439,1765595431801,-1483.33288539,0.00015995,2]
[398395440,1765595431812,-38.69677374,0.00015995,2]
[398395441,1765595431822,-2777.11,0.00016076,2]
[398395442,1765595431831,-1200.0,0.00016198,2]
[398395443,1765595431844,-1200.0,0.00016199,2]
[398395444,1765595431853,-276.31329654,0.00016199,2]
[398395445,1765595431864,-23.68670346,0.00016199,2]
[398395446,1765595431874,-300.0,0.00016199,2]
[398395447,1765595431883,-150.0,0.000162,2]
[398395448,1765595431892,-150.0,0.000162,2]
[398395449,1765595431901,-150.0,0.000162,2]
[398395450,1765595431911,-150.0,0.000162,2]
[398395451,1765595431920,-150.0,0.000162,2]
[398395452,1765595431929,-150.0,0.000162,2]
[398395453,1765595431938,-6561.83,0.00016438,2]
[398395454,1765595431948,-500.0,0.0001652,2]
[398395455,1765595431957,-500.0,0.0001652,2]
[398395456,1765595431967,-500.0,0.0001652,2]
[398395457,1765595431977,-500.0,0.0001652,2]
[398395458,1765595431986,-332.72965014,0.0001652,2]
[398395459,1765595431995,-1331.02746754,0.00016595,2]
[398395460,1765595432004,-550.0,0.00016606,2]
[398395461,1765595432014,-515.4902985,0.00016607,2]
[398395462,1765595432023,-10975.77758129,0.00016607,2]
[398395463,1765595432032,-632.72,0.00016691,2]
[398395464,1765595432041,-3801.91,0.00016691,2]
[398395465,1765595432051,-7182.84,0.00016691,2]
[398395466,1765595432060,-500.0,0.00016691,2]
[398395467,1765595432069,-200.0,0.00016691,2]
[398395468,1765595432079,-200.0,0.00016691,2]
[398395469,1765595432088,-500.0,0.00016691,2]
[398395470,1765595432097,-500.0,0.00016691,2]
[398395471,1765595432107,-500.0,0.00016691,2]
[398395472,1765595432116,-151.0,0.00016691,2]
[398395474,1765595432125,-625.11014971,0.00016691,2]
[398395475,1765595432135,-151.0,0.00016691,2]
[398395476,1765595432144,-151.0,0.00016691,2]
[398395477,1765595432154,-151.0,0.00016691,2]
[398395478,1765595432164,-151.0,0.00016691,2]
[398395479,1765595432173,-151.0,0.00016691,2]
[398395480,1765595432183,-151.0,0.00016691,2]
[398395481,1765595432192,-151.0,0.00016691,2]
[398395482,1765595432201,-303.32716452,0.00016691,2]
[398395483,1765595432211,-151.0,0.00016691,2]
[398395484,1765595432220,-151.0,0.00016691,2]
[398395485,1765595432229,-162.38933071,0.00016691,2]
[398395486,1765595432238,-200.0,0.00016691,2]
[398395487,1765595432247,-500.0,0.00016695,2]
[398395488,1765595432257,-500.0,0.00016695,2]
[398395489,1765595432267,-500.0,0.00016695,2]
[398395490,1765595432276,-500.0,0.00016695,2]
[398395491,1765595432285,-500.0,0.00016695,2]
[398395492,1765595432294,-500.0,0.00016695,2]
[398395493,1765595432304,-588.43514653,0.00016695,2]
[398395494,1765595432313,-500.0,0.00016695,2]
[398395495,1765595432325,-500.0,0.00016695,2]
[398395496,1765595432334,-500.0,0.00016695,2]
[398395497,1765595432344,-500.0,0.00016695,2]
[398395498,1765595432355,-283.9127302,0.00016695,2]
[398395499,1765595432364,-500.0,0.00016695,2]
[398395500,1765595432373,-500.0,0.00016695,2]
[398395501,1765595432383,-500.0,0.00016695,2]
[398395502,1765595432393,-500.0,0.00016695,2]
[398395503,1765595432402,-500.0,0.00016695,2]
[398395504,1765595432412,-500.0,0.00016695,2]
[398395505,1765595432420,-500.0,0.00016695,2]
[398395506,1765595432430,-500.0,0.00016695,2]
[398395507,1765595432440,-500.0,0.00016695,2]
[398395508,1765595432449,-500.0,0.00016695,2]
[398395509,1765595432458,-500.0,0.00016695,2]
[398395510,1765595432468,-500.0,0.00016695,2]
[398395511,1765595432477,-500.0,0.00016695,2]
[398395512,1765595432486,-500.0,0.00016695,2]
[398395513,1765595432495,-500.0,0.00016695,2]
[398395514,1765595432504,-500.0,0.00016695,2]
[398395515,1765595432513,-500.0,0.00016695,2]
[398395516,1765595432523,-500.0,0.00016695,2]
[398395517,1765595432533,-500.0,0.00016695,2]
[398395518,1765595432542,-500.0,0.00016695,2]
[398395519,1765595432551,-500.0,0.00016695,2]
[398395520,1765595432560,-500.0,0.00016695,2]
[398395521,1765595432570,-500.0,0.00016695,2]
[398395522,1765595432579,-9999.99,0.00016696,2]
[398395523,1765595432588,-5231.06,0.00016696,2]
[398395524,1765595432597,-574.12855637,0.00016696,2]
[398395525,1765595432607,-300.0,0.00016696,2]
[398395526,1765595432616,-599.0,0.00016696,2]
[398395527,1765595432625,-512.70074127,0.00016698,2]
[398395528,1765595432646,-1364.71260208,0.00016698,2]
[398395529,1765595432669,-821.56673419,0.00016698,2]
[398395530,1765595432680,-102.96992246,0.00016698,2]
[398395531,1765595432689,-319.8,0.000167,2]
[398395532,1765595432698,-220.71640901,0.000167,2]
[398395533,1765595432707,-58.13941195,0.000167,2]
[398395534,1765595432733,-270.2633495,0.000167,2]
[398395535,1765595432746,-1000.0,0.00016707,2]
[398395536,1765595432756,-154.78563184,0.0001671,2]
[398395537,1765595432765,-515.49029846,0.00016751,2]
[398395538,1765595432774,-3651.46007353,0.00016751,2]
[398395539,1765595432785,-7324.31750771,0.00016751,2]
[398395540,1765595432794,-515.49029846,0.00016894,2]
[398395541,1765595432804,-3708.39865793,0.00016894,2]
[398395542,1765595432815,-1189.407222,0.00016894,2]
[398395545,1765595437826,-1023.47056,0.00016894,2]
[398395546,1765595437837,-5054.50114131,0.00016894,2]
[398395547,1765595437846,-533.98599948,0.00016899,2]
[398395548,1765595437855,-319.8,0.00016974,2]
[398395549,1765595437864,-4769.341,0.00016983,2]
[398395550,1765595437873,-1306.0,0.00016983,2]
[398395551,1765595437882,-2431.252,0.00016983,2]
[398395552,1765595437892,-643.914,0.00016983,2]
[398395553,1765595437901,-1504.0,0.00017,2]
[398395554,1765595437910,-65181.66375479,0.00017,2]
[398395555,1765595437935,-642.12284043,0.00017,2]
[398395556,1765595437986,-305.96311241,0.00017,2]
[398395557,1765595437997,-476.40016926,0.00017,2]
[398395558,1765595438008,-407.22196959,0.00017,2]
[398395586,1765595439930,-617.05038201,0.00017,2]
[398395587,1765595439984,-661.94308124,0.00017,2]
[398395588,1765595440039,-217767.55982536,0.00017,2]
[398395663,1765595442937,-621.329991,0.00017,2]
[398395664,1765595442948,-736.45551995,0.00017,2]
[398395666,1765595442991,-35290.08792323,0.00017,2]
[398395667,1765595443098,-789.44390463,0.00017,2]
[398395668,1765595443109,-7894.39866846,0.00017,2]
[398395669,1765595443153,-500.0,0.00017,2]
[398395670,1765595443164,-781.47808843,0.00017,2]
[398395674,1765595446148,-789575.30370176,0.00017,2]
[398395675,1765595446192,-1273.35928114,0.00017,2]
[398395676,1765595446204,-12127.1228994,0.00017,2]
[398395677,1765595446225,-293.72501615,0.00017,2]
[398395678,1765595446245,-657.5104487,0.00017,2]
[398395679,1765595446256,-2700.0,0.00017,2]
[398395680,1765595449755,1871.5163462,0.00025,120]
[398395681,1765595698709,166.66,0.00015272,2]
[398395713,1765596256421,10152.46348694,0.00025,120]
[398395742,1765596631953,-245.84,0.00015499,2]
[398395744,1765596631964,-166.66,0.00015593,2]
[398395746,1765596631973,-86.98841245,0.00015621,2]
[398395750,1765596632007,-731.71018286,0.00015621,2]
[398395752,1765596632064,-260.99999986,0.00015621,2]
[398395753,1765596632076,-520.30140483,0.00015621,2]
[398395754,1765596632085,-168.0,0.00015869,2]
[398395755,1765596632095,-166.66,0.00015915,2]
[398395756,1765596632105,-160.77,0.00015995,2]
[398395757,1765596632114,-150.0,0.000162,2]
[398395758,1765596632123,-150.0,0.000162,2]
[398395759,1765596632133,-150.0,0.000162,2]
[398395760,1765596632142,-150.0,0.000162,2]
[398395761,1765596632151,-150.0,0.000162,2]
[398395762,1765596632161,-166.66,0.00016236,2]
[398395763,1765596632170,-1200.0,0.00016275,2]
[398395764,1765596632179,-1700.95249597,0.00016276,2]
[398395765,1765596632198,-151.46750403,0.00016276,2]
[398395766,1765596632207,-250.0,0.00016291,2]
[398395767,1765596632216,-300.0,0.00016309,2]
[398395768,1765596632226,-469.68636973,0.0001631,2]
[398395769,1765596632237,-698.65656208,0.0001631,2]
[398395770,1765596632248,-31.65706819,0.0001631,2]
[398395771,1765596632257,-550.0,0.00016311,2]
[398395772,1765596632266,-154.2545868,0.00016312,2]
[398395773,1765596632275,-150.0,0.00016312,2]
[398395774,1765596632285,-58.22271541,0.00016312,2]
[398395775,1765596632297,-92.05157139,0.00016312,2]
[398395776,1765596632306,-150.0,0.00016312,2]
[398395777,1765596632315,-150.0,0.00016312,2]
[398395778,1765596632324,-150.0,0.00016312,2]
[398395779,1765596632333,-1.96842861,0.00016312,2]
[398395780,1765596632345,-148.56796934,0.00016312,2]
[398395781,1765596632355,-150.0,0.00016312,2]
[398395782,1765596632364,-150.89832866,0.00016312,2]
[398395783,1765596632373,-109.7828907,0.00016312,2]
[398395784,1765596632384,-335.349535,0.00016312,2]
[398395789,1765596637985,-67.8675743,0.00016312,2]
[398395790,1765596637995,-150.68725766,0.00016312,2]
[398395791,1765596638004,-155.21031211,0.00016312,2]
[398395792,1765596638013,-150.0,0.00016312,2]
[398395793,1765596638023,-191.93357055,0.00016312,2]
[398395794,1765596638033,-500.0,0.00016312,2]
[398395795,1765596638042,-150.0,0.00016312,2]
[398395796,1765596638051,-150.0,0.00016312,2]
[398395797,1765596638061,-500.0,0.00016312,2]
[398395798,1765596638071,-152.4065998,0.00016312,2]
[398395819,1765596638385,-150.0,0.00016312,2]
[398395823,1765596638422,-150.0,0.00016312,2]
[398395825,1765596638432,-150.0,0.00016312,2]
[398395827,1765596638442,-201.02733453,0.00016312,2]
[398395829,1765596638453,-161.2557306,0.00016312,2]
[398395831,1765596638463,-150.8565749,0.00016312,2]
[398395833,1765596638473,-151.57107343,0.00016312,2]
[398395835,1765596638482,-152.35670924,0.00016312,2]
[398395837,1765596638491,-151.81403616,0.00016312,2]
[398395839,1765596638501,-180.72789439,0.00016312,2]
[398395841,1765596638510,-150.0,0.00016312,2]
[398395843,1765596638519,-150.0,0.00016312,2]
[398395845,1765596638529,-158.30661988,0.00016312,2]
[398395847,1765596638539,-500.0,0.00016312,2]
[398395849,1765596638548,-376.0,0.00016313,2]
[398395851,1765596638558,-999.0,0.0001633,3]
[398395853,1765596638567,-168.0,0.00016356,2]
[398395855,1765596638577,-169.24,0.00016433,2]
[398395857,1765596638587,-604.17,0.00016438,2]
[398395858,1765596638598,-156.86451051,0.00016449,2]
[398395859,1765596638607,-151.59368028,0.00016449,2]
[398395860,1765596638617,-150.0,0.00016449,2]
[398395861,1765596638627,-150.0,0.00016449,2]
[398395862,1765596638636,-150.0,0.00016449,2]
[398395863,1765596638646,-513.0,0.00016449,2]
[398395864,1765596638656,-150.0,0.00016449,2]
[398395865,1765596638665,-500.0,0.00016449,2]
[398395866,1765596638675,-150.0,0.00016449,2]
[398395867,1765596638685,-150.0,0.00016449,2]
[398395868,1765596638695,-500.0,0.00016449,2]
[398395869,1765596638704,-150.0,0.00016449,2]
[398395870,1765596638714,-150.0,0.00016449,2]
[398395871,1765596638724,-206.92920127,0.00016449,2]
[398395872,1765596638733,-500.0,0.00016449,2]
[398395873,1765596638744,-499.0,0.00016526,2]
[398395874,1765596638754,-300.0,0.00016526,2]
[398395875,1765596638764,-360.84320894,0.00016531,2]
[398395876,1765596638774,-168.0,0.00016543,2]
[398395877,1765596638784,-166.66,0.00016558,2]
[398395878,1765596638794,-151.0,0.00016576,2]
[398395879,1765596638804,-200.0,0.00016576,2]
[398395880,1765596638814,-151.0,0.00016576,2]
[398395881,1765596638823,-151.0,0.00016576,2]
[398395882,1765596638833,-151.0,0.00016576,2]
[398395883,1765596638843,-151.0,0.00016576,2]
[398395884,1765596638853,-151.0,0.00016576,2]
[398395885,1765596638862,-151.0,0.00016576,2]
[398395886,1765596638872,-151.0,0.00016576,2]
[398395887,1765596638882,-151.0,0.00016576,2]
[398395888,1765596638891,-151.0,0.00016576,2]
[398395889,1765596638900,-153.2661882,0.00016576,2]
[398395890,1765596638910,-574.12855637,0.00016576,2]